lending/lending_fUSD_20240106
["ID","MTS","AMOUNT","RATE_DAILY","PERIOD"]
[310353117,1704499833259,-155.03452622,0.0002303,2]
[310353118,1704499833269,-144.96547378,0.00023129,2]
[310353119,1704499833281,-517.65859124,0.00023129,2]
[310353120,1704499833293,-564.28815814,0.00023129,2]
[310353121,1704499833308,-542.18999,0.00023129,2]
[310353122,1704499833326,-1404.85883783,0.00023129,2]
[310353123,1704499833337,-999.4475,0.0002313,2]
[310353124,1704499833348,-431.27,0.00024899,2]
[310353125,1704499833357,-209.0,0.00024932,2]
[310353126,1704499833366,-2381.83831912,0.00024999,2]
[310353127,1704499833395,-686.85238588,0.00024999,2]
[310353128,1704499833408,-2195.64596776,0.00024999,2]
[310353129,1704499833418,-1250.0,0.00025,3]
[310353130,1704499833427,-150.29,0.00025,2]
[310353131,1704499833437,-716.96,0.00025328,2]
[310353132,1704499833447,-726.11,0.00025329,2]
[310353133,1704499833457,-3280.85425355,0.00025699,2]
[310353134,1704499833466,-168.97,0.00025699,2]
[310353135,1704499833476,-150.99,0.00025699,2]
[310353136,1704499833486,-2446.86287096,0.000257,2]
[310353137,1704499833498,-207.13712904,0.000257,2]
[310353138,1704499833508,-26321.0,0.000257,2]
[310353139,1704499833518,-2679.13,0.000257,2]
[310353140,1704499833527,-565.31,0.00026351,2]
[310353141,1704499833537,-183.2,0.00026351,2]
[310353142,1704499833548,-3394.93,0.00026362,2]
[310353143,1704499833563,-372.88,0.00026366,2]
[310353144,1704499833573,-1125.08973382,0.0002639,2]
[310353145,1704499833583,-164.04,0.00026396,2]
[310353146,1704499833593,-520.48321937,0.000264,2]
[310353147,1704499833604,-499.99,0.000264,2]
[310353148,1704499833615,-1000.0,0.00026562,2]
[310353149,1704499833625,-153.68,0.00026673,2]
[310353150,1704499833637,-250.0,0.0002674,2]
[310353151,1704499833647,-436.25,0.00026744,2]
[310353152,1704499833658,-442.81,0.0002678,2]
[310353153,1704499833669,-250.0,0.0002678,2]
[310353154,1704499833679,-434.69,0.00026792,2]
[310353155,1704499833690,-153.68,0.00026846,2]
[310353156,1704499833700,-164.78,0.00026982,2]
[310353157,1704499833711,-1300.0,0.00027,3]
[310353158,1704499833721,-153.68,0.0002702,2]
[310353159,1704499833732,-333.40106,0.00027048,2]
[310353160,1704499833743,-333.40106,0.00027148,2]
[310353161,1704499833753,-431.27,0.00027163,2]
[310353162,1704499833763,-153.68,0.00027194,2]
[310353163,1704499833774,-333.40106,0.00027248,2]
[310353164,1704499833785,-333.40106,0.00027348,2]
[310353165,1704499833795,-153.68,0.00027368,2]
[310353166,1704499833805,-250.0,0.00027397,2]
[310353167,1704499833818,-250.0,0.000274,2]
[310353168,1704499833829,-333.40106,0.00027448,2]
[310353169,1704499833840,-165.77,0.00027468,2]
[310353170,1704499833849,-153.68,0.00027541,2]
[310353171,1704499833860,-333.40106,0.00027548,2]
[310353172,1704499833870,-333.40106,0.00027648,2]
[310353173,1704499833881,-153.68,0.00027715,2]
[310353174,1704499833891,-333.40106,0.00027748,2]
[310353175,1704499833902,-442.81,0.00027759,2]
[310353176,1704499833912,-150.0,0.00027811,2]
[310353177,1704499833922,-333.40106,0.00027848,2]
[310353178,1704499833932,-181.15,0.00027864,2]
[310353179,1704499833942,-153.68,0.00027889,2]
[310353180,1704499833953,-4410.94,0.00027945,2]
[310353181,1704499833963,-1566.26,0.00027945,2]
[310353182,1704499833973,-333.40106,0.00027948,2]
[310353183,1704499833983,-181.15,0.00028011,2]
[310353184,1704499833994,-333.40106,0.00028048,2]
[310353185,1704499834004,-153.68,0.00028063,2]
[310353186,1704499834014,-549.207,0.00028123,2]
[310353187,1704499834024,-333.40106,0.00028148,2]
[310353188,1704499834035,-938.33,0.00028149,2]
[310353189,1704499834044,-181.15,0.00028157,2]
[310353190,1704499834054,-333.40106,0.00028248,2]
[310353191,1704499834066,-181.15,0.00028304,2]
[310353192,1704499834075,-2500.0,0.00028304,2]
[310353193,1704499834085,-2429.39,0.00028304,2]
[310353194,1704499834096,-333.40106,0.00028348,2]
[310353195,1704499834106,-44065.35976793,0.00028404,2]
[310353196,1704499834142,-944.79999996,0.00028404,2]
[310353197,1704499834156,-307.51494231,0.00028404,2]
[310353198,1704499834169,-627.10052462,0.00028404,2]
[310353199,1704499834182,-301.38376393,0.00028404,2]
[310353200,1704499834217,-2200.0,0.00028404,2]
[310353201,1704499834233,-3424.19571565,0.00028404,2]
[310353204,1704499837551,-2244.64563761,0.00028404,2]
[310353205,1704499837672,-4792.19397431,0.00028404,2]
[310353206,1704499837731,-1285.22235789,0.00028404,2]
[310353207,1704499837744,-951.26132272,0.00028404,2]
[310353208,1704499837793,-1335.63689892,0.00028404,2]
[310353222,1704499840840,-5698.5710353,0.00028404,2]
[310353244,1704499845627,-465.94500221,0.00028403,2]
[310353245,1704499845641,-2169.63855817,0.00028403,2]
[310353246,1704499845651,-155.7602467,0.00028403,2]
[310353247,1704499845661,-183072.20055885,0.00028404,2]
[310353248,1704499845671,-333.40106,0.00028448,2]
[310353249,1704499845681,-181.15,0.00028451,2]
[310353250,1704499845690,-50000.0,0.00028504,7]
[310353251,1704499845700,-333.40106,0.00028548,2]
[310353252,1704499845710,-181.15,0.00028597,2]
[310353253,1704499845721,-333.40106,0.00028648,2]
[310353254,1704499845731,-16974.4417,0.000287,2]
[310353255,1704499845741,-1000.0,0.000287,2]
[310353256,1704499845751,-442.81,0.00028737,2]
[310353257,1704499845760,-181.15,0.00028744,2]
[310353258,1704499845879,-333.40106,0.00028748,2]
[310353259,1704499845890,-15488.9001,0.00028799,2]
[310353260,1704499845900,-1000.0,0.00028799,2]
[310353261,1704499845909,-81869.29795728,0.000288,2]
[310353262,1704499845921,-1299.58290762,0.000288,2]
[310353286,1704499903261,11988.62495833,0.00018695,2]
[310353311,1704500343785,208.0,0.00022932,2]
[310353312,1704500433877,205.99998,0.00022932,2]
[310353319,1704500887297,-214.6075638,0.0002556,10]
[310353320,1704500887321,-194.81,0.00025585,10]
[310353321,1704500887348,-194.81,0.00026839,10]
[310353322,1704500912519,-395.7724362,0.000277,10]
[310353323,1704500937476,-204.2275638,0.000277,10]
[310353324,1704500937500,-795.7724362,0.000278,10]
[310353325,1704500944906,-504.2275638,0.000278,10]
[310353326,1704500944935,-495.7724362,0.000279,10]
[310353332,1704500953029,-1000.0,0.000279,10]
[310353333,1704500974192,-504.2275638,0.000279,10]
[310353334,1704500974217,-194.81,0.00028093,10]
[310353335,1704500974325,-62.6347362,0.000288,10]
[310353366,1704501031700,-363.89170387,0.00023363,2]
[310353368,1704501031713,-6057.29443586,0.00023363,2]
[310353370,1704501031723,-282.83377143,0.00023364,2]
[310353372,1704501031733,-196.4019374,0.00023364,2]
[310353374,1704501031744,-2300.77308812,0.00023364,2]
[310353376,1704501031754,-764.70765062,0.00023365,2]
[310353378,1704501031763,-526.45970422,0.00023365,2]
[310353380,1704501031773,-301.47622861,0.00023366,2]
[310353382,1704501031783,-219.8296715,0.00023366,2]
[310353384,1704501031793,-11650.18968141,0.00023366,2]
[310353387,1704501031804,-16681.72338809,0.00023367,2]
[310353389,1704501031819,-7318.76384409,0.00023367,2]
[310353391,1704501031829,-1842.05899438,0.00023371,2]
[310353393,1704501031839,-515.38,0.00023378,2]
[310353395,1704501031849,-492.83979718,0.00023561,2]
[310353397,1704501031859,-296.01000225,0.00023799,2]
[310353399,1704501031875,-21.83125442,0.00023799,2]
[310353401,1704501031886,-155.0,0.000238,2]
[310353403,1704501031895,-2095.06874558,0.00023801,2]
[310353405,1704501031907,-562.43544538,0.00023801,2]
[310353407,1704501031919,-1101.33165979,0.00023801,2]
[310353408,1704501031942,-9292.41423,0.00023801,2]
[310353409,1704501031954,-1232.77934096,0.00023801,2]
[310353410,1704501031966,-525.01690073,0.00023801,2]
[310353411,1704501031978,-345.2,0.00023801,2]
[310353412,1704501032007,-1992.94131316,0.00023801,2]
[310353413,1704501032019,-744.64168612,0.00023801,2]
[310353414,1704501032039,-683.643562,0.00023801,2]
[310353416,1704501032051,-2241.45606359,0.00023801,2]
[310353418,1704501032062,-298.69050621,0.00023801,2]
[310353419,1704501032083,-3937.39106229,0.00023801,2]
[310353420,1704501032094,-15396.22841242,0.00023801,2]
[310353425,1704501032143,-1106.73966703,0.00023801,2]
[310353426,1704501037698,-4459.38620389,0.00023801,2]
[310353427,1704501037710,-1684.7226343,0.00023801,2]
[310353428,1704501037721,-1827.85,0.00023801,2]
[310353429,1704501037763,-531.3020004,0.00023801,2]
[310353430,1704501037778,-46240.2033238,0.00023801,2]
[310353431,1704501037787,-154.49037017,0.00023813,2]
[310353432,1704501037797,-154.49037017,0.00024093,2]
[310353433,1704501037806,-1021.32,0.00024093,2]
[310353434,1704501037816,-2705.0,0.00024156,2]
[310353435,1704501037825,-3034.62,0.00024214,2]
[310353436,1704501037834,-18755.67,0.00024338,2]
[310353437,1704501037844,-154.49037017,0.00024373,2]
[310353438,1704501037854,-1292.07,0.00024373,2]
[310353439,1704501037866,-150.99,0.00024373,2]
[310353440,1704501037875,-1822.63,0.000244,2]
[310353441,1704501037885,-155.74,0.00024431,2]
[310353442,1704501037895,-150.0,0.00024454,2]
[310353443,1704501037904,-208.0,0.00024639,2]
[310353444,1704501037914,-154.49037017,0.00024653,2]
[310353445,1704501037923,-6367.63,0.00024658,2]
[310353446,1704501037933,-154.49037017,0.00024933,2]
[310353447,1704501037942,-1250.0,0.00025,3]
[310353448,1704501037952,-738.47,0.00025047,2]
[310353449,1704501037961,-733.5,0.00025124,2]
[310353450,1704501037971,-722.28,0.00025146,2]
[310353451,1704501037980,-1030.2,0.00025147,2]
[310353452,1704501037989,-409.5504781,0.00025187,2]
[310353453,1704501037999,-154.49037017,0.00025214,2]
[310353454,1704501038008,-1894.9,0.00025273,2]
[310353455,1704501038017,-150.0,0.00025315,2]
[310353456,1704501038027,-737.17,0.00025347,2]
[310353457,1704501038036,-3032.23,0.00025367,2]
[310353458,1704501038045,-165.77,0.00025389,2]
[310353459,1704501038054,-1078.9,0.00025394,2]
[310353460,1704501038063,-2000.0,0.00025433,2]
[310353461,1704501038072,-200.0,0.00025443,2]
[310353462,1704501038082,-154.49037017,0.00025494,2]
[310353463,1704501038091,-250.0,0.00025509,2]
[310353464,1704501038100,-624.18,0.0002552,2]
[310353465,1704501038108,-500.0,0.00025551,2]
[310353466,1704501038117,-152.49,0.00025557,2]
[310353468,1704501038127,-714.2,0.00025582,2]
[310353470,1704501038136,-200.0,0.00025586,2]
[310353472,1704501038145,-462.00323004,0.00025587,2]
[310353474,1704501038154,-4434.83154395,0.00025597,2]
[310353476,1704501038163,-1054263.9214738,0.00025597,2]
[310353478,1704501038172,-8469.78338584,0.00025598,2]
[310353480,1704501038182,-886.73989095,0.00025599,2]
[310353482,1704501038191,-174.95,0.000256,2]
[310353483,1704501038201,-452.25,0.00025636,2]
[310353485,1704501038212,-515.38,0.00025642,2]
[310353487,1704501038221,-522.2974567,0.00025698,2]
[310353489,1704501038230,-385.11938056,0.00025698,2]
[310353492,1704501038239,-649.65774219,0.00025699,2]
[310353493,1704501038249,-25983.0,0.000257,2]
[310353495,1704501038258,-152.49,0.00025723,2]
[310353497,1704501038267,-154.49037017,0.00025774,2]
[310353499,1704501038276,-2796.57,0.00025832,2]
[310353501,1704501038285,-200.0,0.00025854,2]
[310353503,1704501038294,-497.16,0.00025857,2]
[310353505,1704501038303,-152.49,0.0002589,2]
[310353507,1704501038315,-155.0,0.00026008,2]
[310353510,1704501038324,-154.49037017,0.00026054,2]
[310353512,1704501038333,-152.49,0.00026056,2]
[310353514,1704501038342,-150.0,0.00026079,2]
[310353515,1704501038352,-750.0,0.00026082,2]
[310353517,1704501038361,-166.52,0.00026086,2]
[310353519,1704501038370,-210.15,0.0002609,2]
[310353521,1704501038379,-250.0,0.0002609,2]
[310353523,1704501038388,-181.11,0.00026099,2]
[310353525,1704501038397,-152.49,0.00026223,2]
[310353527,1704501038406,-210.15,0.00026227,2]
[310353529,1704501038416,-154.49037017,0.00026334,2]
[310353531,1704501038425,-210.15,0.00026364,2]
[310353533,1704501038434,-152.49,0.00026389,2]
[310353535,1704501038443,-624.18,0.00026498,2]
[310353538,1704501038452,-210.15,0.00026501,2]
[310353540,1704501038461,-547.75,0.00026506,2]
[310353541,1704501038470,-152.49,0.00026556,2]
[310353544,1704501038479,-154.49037017,0.00026614,2]
[310353546,1704501038489,-157.37,0.00026634,2]
[310353547,1704501038498,-210.15,0.00026639,2]
[310353550,1704501038507,-162.99,0.00026695,2]
[310353551,1704501038517,-152.49,0.00026722,2]
[310353553,1704501038527,-210.15,0.00026776,2]
[310353555,1704501038536,-152.49,0.00026889,2]
[310353557,1704501038544,-154.49037017,0.00026894,2]
[310353559,1704501038553,-210.15,0.00026913,2]
[310353561,1704501038563,-1300.0,0.00027,3]
[310353563,1704501038572,-333.40106,0.00027048,2]
[310353565,1704501038581,-210.15,0.00027051,2]
[310353567,1704501038590,-333.40106,0.00027148,2]
[310353569,1704501038599,-154.49037017,0.00027174,2]
[310353571,1704501038608,-210.15,0.00027188,2]
[310353573,1704501038617,-333.40106,0.00027248,2]
[310353575,1704501038626,-3182.01197305,0.00027263,2]
[310353577,1704501038636,-175.81,0.00027301,2]
[310353579,1704501038645,-210.15,0.00027325,2]
[310353581,1704501038655,-333.40106,0.00027348,2]
[310353583,1704501038664,-1616.53,0.00027397,2]
[310353585,1704501038675,-3062.69,0.00027397,2]
[310353587,1704501038684,-2976.52,0.00027397,2]
[310353589,1704501038693,-595.64,0.00027397,2]
[310353591,1704501038704,-1905.3,0.00027397,2]
[310353593,1704501038713,-500.0,0.00027397,2]
[310353595,1704501038724,-16543.16,0.00027397,2]
[310353597,1704501038733,-500.0,0.00027397,2]
[310353599,1704501038742,-500.0,0.00027397,2]
[310353601,1704501038751,-500.0,0.00027397,2]
[310353603,1704501038760,-500.0,0.00027397,2]
[310353605,1704501038769,-500.0,0.00027397,2]
[310353607,1704501038778,-500.0,0.00027397,2]
[310353609,1704501038787,-1109.46,0.00027397,2]
[310353611,1704501038796,-500.0,0.00027397,2]
[310353613,1704501038806,-500.0,0.00027397,2]
[310353615,1704501038815,-169.31583522,0.00027397,2]
[310353617,1704501038825,-1484.61,0.00027397,2]
[310353619,1704501038834,-996.96,0.00027397,2]
[310353621,1704501038843,-500.0,0.00027397,2]
[310353623,1704501038853,-500.0,0.00027397,2]
[310353625,1704501038865,-500.0,0.00027397,2]
[310353627,1704501038874,-500.0,0.00027397,2]
[310353629,1704501038883,-500.0,0.00027397,2]
[310353631,1704501038892,-500.0,0.00027397,2]
[310353633,1704501038901,-500.0,0.00027397,2]
[310353635,1704501038910,-500.0,0.00027397,2]
[310353636,1704501038919,-984.05,0.00027397,2]
[310353638,1704501038928,-3124.17,0.00027397,2]
[310353640,1704501038937,-500.0,0.00027397,2]
[310353642,1704501038946,-500.0,0.00027397,2]
[310353644,1704501038956,-500.0,0.00027397,2]
[310353646,1704501038965,-250.0,0.00027397,2]
[310353648,1704501038975,-393.58,0.00027397,2]
[310353650,1704501038984,-250.0,0.000274,2]
[310353652,1704501038994,-333.40106,0.00027448,2]
[310353653,1704501039003,-154.49037017,0.00027455,2]
[310353654,1704501039012,-210.15,0.00027463,2]
[310353655,1704501039021,-624.18,0.00027477,2]
[310353656,1704501039031,-333.40106,0.00027548,2]
[310353657,1704501039040,-393.58,0.00027556,2]
[310353658,1704501039050,-210.15,0.000276,2]
[310353659,1704501039059,-333.40106,0.00027648,2]
[310353660,1704501039068,-1616.53,0.00027671,2]
[310353661,1704501039077,-3062.69,0.00027671,2]
[310353662,1704501039086,-2976.52,0.00027671,2]
[310353663,1704501039095,-595.64,0.00027671,2]
[310353665,1704501039104,-1905.3,0.00027671,2]
[310353667,1704501039113,-500.0,0.00027671,2]
[310353669,1704501039122,-16543.16,0.00027671,2]
[310353671,1704501039132,-500.0,0.00027671,2]
[310353673,1704501039141,-500.0,0.00027671,2]
[310353675,1704501039150,-500.0,0.00027671,2]
[310353677,1704501039159,-500.0,0.00027671,2]
[310353679,1704501039168,-1109.46,0.00027671,2]
[310353681,1704501039177,-150.27528524,0.00027671,2]
[310353683,1704501039186,-500.0,0.00027671,2]
[310353685,1704501039195,-1484.61,0.00027671,2]
[310353687,1704501039204,-996.96,0.00027671,2]
[310353689,1704501039213,-500.0,0.00027671,2]
[310353691,1704501039221,-500.0,0.00027671,2]
[310353693,1704501039230,-500.0,0.00027671,2]
[310353695,1704501039239,-500.0,0.00027671,2]
[310353697,1704501039249,-500.0,0.00027671,2]
[310353699,1704501039258,-500.0,0.00027671,2]
[310353701,1704501039267,-984.05,0.00027671,2]
[310353703,1704501039276,-3124.17,0.00027671,2]
[310353705,1704501039284,-500.0,0.00027671,2]
[310353707,1704501039293,-500.0,0.00027671,2]
[310353709,1704501039302,-500.0,0.00027671,2]
[310353711,1704501039312,-393.58,0.00027714,2]
[310353713,1704501039321,-154.49037017,0.00027735,2]
[310353715,1704501039330,-210.15,0.00027737,2]
[310353717,1704501039339,-333.40106,0.00027748,2]
[310353719,1704501039348,-1894.960521,0.000278,2]
[310353721,1704501039357,-333.40106,0.00027848,2]
[310353722,1704501039366,-175.81,0.00027849,2]
[310353724,1704501039375,-393.58,0.00027872,2]
[310353726,1704501039384,-210.15,0.00027875,2]
[310353728,1704501039393,-300.0,0.00027899,2]
[310353730,1704501039401,-150.0,0.00027899,2]
[310353732,1704501039411,-250.0,0.00027899,2]
[310353734,1704501039419,-151.83132911,0.00027904,2]
[310353736,1704501039428,-515.38,0.00027906,2]
[310353738,1704501039437,-1616.53,0.00027945,2]
[310353740,1704501039447,-3062.69,0.00027945,2]
[310353742,1704501039456,-2976.52,0.00027945,2]
[310353744,1704501039465,-595.64,0.00027945,2]
[310353747,1704501039477,-1905.3,0.00027945,2]
[310353749,1704501039487,-500.0,0.00027945,2]
[310353751,1704501039496,-16543.16,0.00027945,2]
[310353753,1704501039505,-500.0,0.00027945,2]
[310353755,1704501039514,-500.0,0.00027945,2]
[310353756,1704501039523,-500.0,0.00027945,2]
[310353759,1704501039532,-500.0,0.00027945,2]
[310353761,1704501039543,-1109.46,0.00027945,2]
[310353763,1704501039552,-500.0,0.00027945,2]
[310353764,1704501039562,-1484.61,0.00027945,2]
[310353767,1704501039572,-996.96,0.00027945,2]
[310353769,1704501039581,-500.0,0.00027945,2]
[310353771,1704501039590,-500.0,0.00027945,2]
[310353773,1704501039599,-500.0,0.00027945,2]
[310353775,1704501039608,-500.0,0.00027945,2]
[310353776,1704501039617,-500.0,0.00027945,2]
[310353778,1704501039625,-500.0,0.00027945,2]
[310353779,1704501039635,-984.05,0.00027945,2]
[310353781,1704501039645,-3124.17,0.00027945,2]
[310353800,1704501039866,-500.0,0.00027945,2]
[310353801,1704501039876,-500.0,0.00027945,2]
[310353802,1704501039885,-619.94,0.00027945,2]
[310353803,1704501039895,-7936.08,0.00027945,2]
[310353804,1704501039903,-333.40106,0.00027948,2]
[310353805,1704501039913,-155.0,0.00028,2]
[310353806,1704501039923,-12262.29609774,0.00028,2]
[310353807,1704501039933,-210.15,0.00028012,2]
[310353808,1704501039943,-154.49037017,0.00028015,2]
[310353809,1704501039953,-393.58,0.0002803,2]
[310353810,1704501039963,-333.40106,0.00028048,2]
[310353811,1704501039973,-333.40106,0.00028148,2]
[310353812,1704501039982,-210.15,0.00028149,2]
[310353813,1704501039992,-733.48,0.00028155,2]
[310353814,1704501040001,-407.27,0.00028163,2]
[310353815,1704501040011,-407.27,0.00028163,2]
[310353816,1704501040021,-407.27,0.00028163,2]
[310353817,1704501040030,-250.0,0.00028173,2]
[310353818,1704501040040,-393.58,0.00028189,2]
[310353819,1704501040049,-694.90571071,0.00028201,2]
[310353820,1704501040059,-424.9056028,0.00028201,4]
[310353821,1704501040071,-1616.53,0.00028219,2]
[310353822,1704501040080,-3062.69,0.00028219,2]
[310353823,1704501040090,-2976.52,0.00028219,2]
[310353824,1704501040099,-595.64,0.00028219,2]
[310353825,1704501040108,-1905.3,0.00028219,2]
[310353826,1704501040117,-500.0,0.00028219,2]
[310353827,1704501040126,-16543.16,0.00028219,2]
[310353828,1704501040135,-325.15830449,0.00028219,2]
[310353829,1704501040144,-500.0,0.00028219,2]
[310353831,1704501040153,-500.0,0.00028219,2]
[310353832,1704501040162,-592.73,0.00028219,2]
[310353833,1704501040171,-1109.46,0.00028219,2]
[310353834,1704501040180,-500.0,0.00028219,2]
[310353835,1704501040189,-1484.61,0.00028219,2]
[310353836,1704501040198,-996.96,0.00028219,2]
[310353837,1704501040207,-500.0,0.00028219,2]
[310353838,1704501040216,-500.0,0.00028219,2]
[310353839,1704501040227,-500.0,0.00028219,2]
[310353840,1704501040236,-500.0,0.00028219,2]
[310353841,1704501040245,-500.0,0.00028219,2]
[310353842,1704501040254,-984.05,0.00028219,2]
[310353843,1704501040264,-3124.17,0.00028219,2]
[310353844,1704501040273,-500.0,0.00028219,2]
[310353845,1704501040282,-333.40106,0.00028248,2]
[310353846,1704501040291,-556.22408528,0.00028258,2]
[310353847,1704501040300,-165.78,0.00028283,2]
[310353848,1704501040309,-210.15,0.00028287,2]
[310353849,1704501040318,-154.49037017,0.00028295,2]
[310353850,1704501040327,-1606.58,0.000283,2]
[310353851,1704501040336,-1717.37,0.000283,2]
[310353852,1704501040346,-500.0,0.000283,2]
[310353853,1704501040355,-500.0,0.000283,2]
[310353854,1704501040365,-5699.31,0.000283,2]
[310353855,1704501040374,-966.01,0.000283,2]
[310353856,1704501040383,-626.07,0.000283,2]
[310353857,1704501040392,-996.55,0.000283,2]
[310353858,1704501040401,-3088.07,0.000283,2]
[310353859,1704501040410,-626.56,0.000283,2]
[310353860,1704501040419,-2714.29,0.000283,2]
[310353861,1704501040428,-1900.13,0.000283,2]
[310353862,1704501040439,-28954.9,0.000283,2]
[310353863,1704501040448,-566.63,0.000283,2]
[310353864,1704501040457,-1501.2,0.000283,2]
[310353865,1704501040467,-1450.39,0.000283,2]
[310353866,1704501040476,-1313.68,0.000283,2]
[310353867,1704501040485,-1867.18,0.000283,2]
[310353868,1704501040495,-1245.09,0.000283,2]
[310353869,1704501040504,-815.97,0.000283,2]
[310353870,1704501040512,-1565.45,0.000283,2]
[310353871,1704501040521,-500.0,0.000283,2]
[310353872,1704501040531,-500.0,0.000283,2]
[310353873,1704501040541,-1975.6,0.000283,2]
[310353874,1704501040550,-1033.08,0.000283,2]
[310353875,1704501040560,-2106.78,0.000283,2]
[310353876,1704501040569,-1554.3,0.000283,2]
[310353877,1704501040578,-1289.23,0.000283,2]
[310353878,1704501040588,-1555.83,0.000283,2]
[310353879,1704501040597,-869.18,0.000283,2]
[310353880,1704501040606,-756.68,0.000283,2]
[310353881,1704501040616,-500.0,0.000283,2]
[310353882,1704501040625,-2587.9,0.000283,2]
[310353883,1704501040634,-3360.36,0.000283,2]
[310353884,1704501040643,-2212.57,0.000283,2]
[310353885,1704501040652,-1526.92,0.000283,2]
[310353886,1704501040662,-3606.61,0.000283,2]
[310353887,1704501040672,-2135.78,0.000283,2]
[310353888,1704501040681,-25111.93,0.000283,2]
[310353889,1704501040690,-1866.57,0.000283,2]
[310353890,1704501040699,-2701.87,0.000283,2]
[310353891,1704501040708,-3023.67,0.000283,2]
[310353892,1704501040718,-7876.63,0.000283,2]
[310353893,1704501040727,-1633.27,0.000283,2]
[310353894,1704501040736,-1354.63,0.000283,2]
[310353895,1704501040745,-1821.74,0.000283,2]
[310353896,1704501040755,-2403.37,0.000283,2]
[310353897,1704501040763,-2204.60101144,0.00028301,2]
[310353898,1704501040773,-180.4100384,0.00028301,2]
[310353899,1704501040783,-178.81756896,0.00028301,2]
[310353900,1704501040793,-342.70236858,0.00028301,2]
[310353901,1704501040801,-100000.0,0.00028302,2]
[310353902,1704501040810,-393.58,0.00028347,2]
[310353903,1704501040820,-333.40106,0.00028348,2]
[310353904,1704501040830,-162.99,0.00028369,2]
[310353905,1704501040840,-462.00323004,0.00028391,2]
[310353906,1704501040850,-349.4,0.00028397,2]
[310353907,1704501040860,-944.6804996,0.00028399,2]
[310353908,1704501040872,-501.35,0.00028401,2]
[310353909,1704501040881,-500.0,0.00028401,2]
[310353910,1704501040890,-500.0,0.00028401,2]
[310353911,1704501040900,-500.0,0.00028401,2]
[310353912,1704501040911,-500.0,0.00028401,2]
[310353913,1704501040920,-612.48,0.00028401,2]
[310353914,1704501040931,-500.0,0.00028401,2]
[310353915,1704501040941,-500.0,0.00028401,2]
[310353916,1704501040950,-500.0,0.00028401,2]
[310353917,1704501040959,-500.0,0.00028401,2]
[310353918,1704501040968,-500.0,0.00028401,2]
[310353919,1704501040977,-500.0,0.00028401,2]
[310353920,1704501040986,-310.42477754,0.00028401,2]
[310353921,1704501040996,-500.0,0.00028401,2]
[310353922,1704501041005,-500.0,0.00028401,2]
[310353923,1704501041014,-500.0,0.00028401,2]
[310353924,1704501041024,-500.0,0.00028401,2]
[310353925,1704501041033,-345.69829076,0.00028401,2]
[310353926,1704501041042,-500.0,0.00028401,2]
[310353927,1704501041052,-500.0,0.00028401,2]
[310353928,1704501041061,-500.0,0.00028401,2]
[310353929,1704501041070,-500.0,0.00028401,2]
[310353930,1704501041079,-475.22151547,0.00028401,2]
[310353931,1704501041089,-500.0,0.00028401,2]
[310353932,1704501041098,-500.0,0.00028401,2]
[310353933,1704501041106,-500.0,0.00028401,2]
[310353934,1704501041115,-500.0,0.00028401,2]
[310353935,1704501041125,-500.0,0.00028401,2]
[310353936,1704501041135,-500.0,0.00028401,2]